fUSD/lending_fUSD_20260307
["ID","MTS","AMOUNT","RATE_DAILY","PERIOD"]
[407873367,1772862650839,-576.11905393,0.00041095,120]
[407873368,1772862650848,-500.0,0.00041095,120]
[407873369,1772862650858,-500.0,0.00041095,120]
[407873370,1772862650867,-500.0,0.00041095,120]
[407873371,1772862650877,-500.0,0.00041095,120]
[407873372,1772862650886,-550.27637639,0.00041095,120]
[407873373,1772862650896,-500.0,0.00041095,90]
[407873374,1772862650905,-500.0,0.00041095,120]
[407873375,1772862650914,-726.49,0.00041095,120]
[407873376,1772862650923,-500.0,0.00041095,120]
[407873377,1772862650933,-500.0,0.00041095,120]
[407873378,1772862650942,-500.0,0.00041095,120]
[407873379,1772862650950,-500.0,0.00041095,120]
[407873380,1772862650960,-500.0,0.00041095,120]
[407873381,1772862650969,-500.0,0.00041095,120]
[407873382,1772862650978,-500.0,0.00041095,120]
[407873383,1772862650987,-500.0,0.00041095,120]
[407873384,1772862650996,-537.54343289,0.00041095,120]
[407873385,1772862651005,-500.0,0.00041095,120]
[407873386,1772862651015,-500.0,0.00041095,120]
[407873387,1772862651024,-500.0,0.00041095,120]
[407873388,1772862651034,-500.0,0.00041095,120]
[407873389,1772862651043,-500.0,0.00041095,120]
[407873390,1772862651052,-500.0,0.00041095,120]
[407873391,1772862651061,-500.0,0.00041095,120]
[407873392,1772862651070,-500.0,0.00041095,120]
[407873393,1772862651079,-500.0,0.00041095,120]
[407873394,1772862651088,-500.0,0.00041095,120]
[407873395,1772862651097,-817.5,0.00041095,120]
[407873396,1772862651106,-500.0,0.00041095,120]
[407873397,1772862651220,-500.0,0.00041095,120]
[407873398,1772862651229,-500.0,0.00041095,120]
[407873399,1772862651237,-500.0,0.00041095,120]
[407873400,1772862651246,-556.16412815,0.00041095,120]
[407873401,1772862651255,-533.68606803,0.00041095,120]
[407873402,1772862651263,-500.0,0.00041095,120]
[407873403,1772862651272,-500.0,0.00041095,120]
[407873404,1772862651281,-500.0,0.00041095,120]
[407873405,1772862651290,-626.8072212,0.00041095,120]
[407873406,1772862651298,-500.0,0.00041095,120]
[407873407,1772862651307,-500.0,0.00041095,120]
[407873408,1772862651317,-500.0,0.00041095,120]
[407873409,1772862651325,-500.0,0.00041095,120]
[407873410,1772862651335,-500.0,0.00041095,120]
[407873411,1772862651344,-500.0,0.00041095,120]
[407873412,1772862651354,-559.60023531,0.00041095,120]
[407873413,1772862651363,-500.0,0.00041095,120]
[407873414,1772862651371,-500.0,0.00041095,120]
[407873415,1772862651380,-619.26155907,0.00041095,120]
[407873416,1772862651389,-598.94572055,0.00041095,120]
[407873417,1772862651398,-500.0,0.00041095,120]
[407873418,1772862651410,-500.0,0.00041095,120]
[407873419,1772862651424,-500.0,0.00041095,120]
[407873420,1772862651434,-1070.69,0.00041095,120]
[407873421,1772862651442,-500.0,0.00041095,120]
[407873422,1772862651452,-500.0,0.00041095,120]
[407873423,1772862651461,-500.0,0.00041095,120]
[407873424,1772862651470,-500.0,0.00041095,120]
[407873425,1772862651482,-500.0,0.00041095,120]
[407873426,1772862651491,-548.65,0.00041095,120]
[407873427,1772862651500,-463.74339244,0.00041095,120]
[407873428,1772862651508,-542.48106634,0.00041095,120]
[407873429,1772862651517,-500.0,0.00041095,120]
[407873430,1772862651526,-535.49289931,0.00041095,120]
[407873431,1772862651534,-500.0,0.00041095,120]
[407873432,1772862651543,-500.0,0.00041095,120]
[407873433,1772862651552,-500.0,0.00041095,120]
[407873434,1772862651560,-500.0,0.00041095,120]
[407873435,1772862651569,-500.0,0.00041095,120]
[407873436,1772862651577,-500.0,0.00041095,120]
[407873437,1772862651586,-500.0,0.00041095,120]
[407873438,1772862651595,-500.0,0.00041095,120]
[407873439,1772862651603,-500.0,0.00041095,120]
[407873440,1772862651612,-500.0,0.00041095,120]
[407873441,1772862651620,-625.28,0.00041095,120]
[407873442,1772862651629,-500.0,0.00041095,120]
[407873443,1772862651637,-500.0,0.00041095,120]
[407873444,1772862651646,-500.0,0.00041095,120]
[407873445,1772862651655,-500.0,0.00041095,120]
[407873446,1772862651664,-500.0,0.00041095,120]
[407873447,1772862651673,-563.54836949,0.00041095,120]
[407873448,1772862651682,-500.0,0.00041095,120]
[407873449,1772862651691,-500.0,0.00041095,120]
[407873450,1772862651700,-500.0,0.00041095,120]
[407873451,1772862651709,-500.0,0.00041095,120]
[407873452,1772862651718,-500.0,0.00041095,120]
[407873453,1772862651727,-500.0,0.00041095,120]
[407873454,1772862651736,-310.85945775,0.00041095,120]
[407873455,1772862651747,-500.0,0.00041095,120]
[407873456,1772862651757,-551.98644827,0.00041095,120]
[407873457,1772862651767,-500.0,0.00041095,30]
[407873458,1772862651780,-500.0,0.00041095,120]
[407873459,1772862651791,-500.0,0.00041095,120]
[407873460,1772862651801,-500.0,0.00041095,120]
[407873461,1772862651811,-892.43,0.00041095,120]
[407873462,1772862651820,-500.0,0.00041095,120]
[407873463,1772862651829,-541.1797368,0.00041095,120]
[407873464,1772862651838,-500.0,0.00041095,120]
[407873465,1772862651848,-500.0,0.00041095,120]
[407873466,1772862651858,-500.0,0.00041095,120]
[407873467,1772862651868,-500.0,0.00041095,120]
[407873468,1772862651879,-500.0,0.00041095,120]
[407873469,1772862651889,-497.17731414,0.00041095,120]
[407873470,1772862651898,-500.0,0.00041095,120]
[407873471,1772862651910,-500.0,0.00041095,120]
[407873472,1772862651920,-500.0,0.00041095,120]
[407873473,1772862651930,-500.0,0.00041095,120]
[407873474,1772862651940,-588.79901731,0.00041095,120]
[407873475,1772862651949,-500.0,0.00041095,120]
[407873476,1772862651957,-500.0,0.00041095,120]
[407873477,1772862651966,-623.05882798,0.00041095,120]
[407873478,1772862651976,-254.47454367,0.00041095,120]
[407873479,1772862652968,-150.0,0.00019602,2]
[407873480,1772862652977,-150.0,0.00019657,2]
[407873481,1772862652987,-150.0,0.00019712,2]
[407873482,1772862652997,-150.0,0.00019766,2]
[407873483,1772862653006,-150.0,0.00019821,2]
[407873484,1772862653016,-249.0,0.00019876,2]
[407873485,1772862653025,-248.71934318,0.00019985,2]
[407873486,1772862653034,-135.34134703,0.0002,2]
[407873487,1772862653047,-408.12882697,0.0002,2]
[407873488,1772862653057,-277.98535287,0.00020753,2]
[407873489,1772862745454,500.0,0.00011333,2]
[407873490,1772862745916,737.46869835,8e-05,2]
[407873496,1772863194119,1882.0619399,9.95e-05,2]
[407873504,1772863595140,-201.99823632,0.00013333,2]
[407873525,1772863832074,-172.0,0.000133,5]
[407873527,1772863832084,-250.0,0.00013316,2]
[407873528,1772863832093,-513.0,0.00013333,2]
[407873530,1772863832102,-35.48795508,0.00013333,2]
[407873531,1772863832188,-224.51204492,0.00013333,2]
[407873532,1772863832198,-200.0,0.00014053,2]
[407873533,1772863832209,-671.0,0.00014629,2]
[407873534,1772863832220,-600.0,0.0001463,2]
[407873535,1772863832229,-600.0,0.0001463,2]
[407873536,1772863832239,-300.0,0.0001463,2]
[407873537,1772863832248,-300.0,0.0001463,2]
[407873538,1772863832258,-300.0,0.0001463,2]
[407873539,1772863832267,-300.0,0.0001463,2]
[407873540,1772863832277,-425.24124255,0.0001463,2]
[407873541,1772863832287,-250.0,0.0001463,2]
[407873542,1772863832297,-600.0,0.00014666,2]
[407873544,1772863832305,-600.0,0.00014666,2]
[407873546,1772863832315,-600.0,0.00014666,2]
[407873548,1772863832324,-1311.93366285,0.00015,3]
[407873550,1772863832333,-250.0,0.00015,2]
[407873552,1772863832342,-200.0,0.000152,2]
[407873554,1772863832351,-165.47,0.00015297,2]
[407873556,1772863832361,-599.16830903,0.00015365,2]
[407873557,1772863832370,-180.416132,0.00015729,2]
[407873558,1772863832379,-230.21,0.00016123,2]
[407873559,1772863832388,-2000.0,0.00016133,2]
[407873560,1772863832398,-5756.51714875,0.000162,5]
[407873561,1772863832407,-2000.0,0.00016233,2]
[407873562,1772863832415,-2000.0,0.00016233,2]
[407873563,1772863832426,-150.0,0.00016921,2]
[407873564,1772863832436,-9999.99,0.00016922,2]
[407873565,1772863832445,-7983.46,0.00016922,2]
[407873566,1772863832455,-11576.72,0.00016922,2]
[407873567,1772863832463,-150.99,0.00016922,2]
[407873568,1772863832472,-513.0,0.00017037,5]
[407873569,1772863832481,-200.0,0.00017101,2]
[407873570,1772863832491,-150.0,0.00017804,2]
[407873571,1772863832500,-1456.33,0.00018154,2]
[407873572,1772863832509,-152.76,0.00018271,2]
[407873573,1772863832518,-168.0,0.00018815,2]
[407873574,1772863832527,-168.0,0.00018838,2]
[407873575,1772863832537,-500.0,0.00018981,2]
[407873576,1772863832546,-168.0,0.00018985,2]
[407873577,1772863832555,-168.0,0.00019081,2]
[407873578,1772863832565,-300.0,0.000191,6]
[407873579,1772863832574,-404.9,0.00019178,30]
[407873580,1772863832584,-700.0,0.000192,7]
[407873581,1772863832593,-168.0,0.00019284,2]
[407873582,1772863832602,-1000.0,0.000193,7]
[407873583,1772863832612,-168.0,0.00019361,2]
[407873584,1772863832621,-168.0,0.00019371,2]
[407873585,1772863832630,-168.0,0.00019399,2]
[407873586,1772863832639,-1400.0,0.000194,7]
[407873587,1772863832649,-168.0,0.00019481,2]
[407873588,1772863832658,-1700.0,0.000195,7]
[407873589,1772863832667,-168.0,0.00019561,2]
[407873590,1772863832676,-172.78723296,0.00019595,2]
[407873591,1772863832685,-300.0,0.000196,7]
[407873592,1772863832695,-300.0,0.000197,7]
[407873593,1772863832704,-1000.0,0.000198,2]
[407873594,1772863832713,-16228.5515,0.000198,2]
[407873595,1772863832722,-300.0,0.000198,7]
[407873596,1772863832732,-200.0,0.00019873,2]
[407873597,1772863832741,-5800.0,0.00019892,2]
[407873598,1772863832750,-10204.9278,0.00019897,2]
[407873599,1772863832759,-500.0,0.00019899,2]
[407873600,1772863832768,-500.0,0.00019899,2]
[407873601,1772863832777,-500.0,0.00019899,2]
[407873602,1772863832788,-500.0,0.00019899,2]
[407873603,1772863832798,-10000.0,0.000199,2]
[407873604,1772863832808,-5000.0,0.000199,2]
[407873605,1772863832817,-849.2579573,0.000199,2]
[407873606,1772863832826,-2500.0,0.000199,2]
[407873607,1772863832835,-300.0,0.000199,7]
[407873608,1772863832844,-5800.0,0.000199,2]
[407873609,1772863832853,-2906.56785621,0.000199,2]
[407873610,1772863832862,-1324.00428525,0.000199,2]
[407873611,1772863832872,-1025.46211456,0.000199,2]
[407873612,1772863832881,-184.82463117,0.000199,3]
[407873613,1772863832890,-30984.27162414,0.000199,2]
[407873614,1772863832899,-497.49770464,0.00019949,2]
[407873615,1772863832909,-500.0,0.00019996,2]
[407873616,1772863832918,-151.0,0.00019997,2]
[407873617,1772863832928,-309.98346331,0.00019999,2]
[407873618,1772863832937,-500.0,0.00019999,2]
[407873619,1772863832946,-500.0,0.00019999,2]
[407873620,1772863832955,-500.0,0.00019999,2]
[407873621,1772863832965,-500.0,0.00019999,2]
[407873622,1772863832974,-500.0,0.00019999,2]
[407873623,1772863832984,-500.0,0.00019999,2]
[407873624,1772863832996,-500.0,0.00019999,2]
[407873625,1772863833005,-517.33931831,0.00019999,2]
[407873626,1772863833015,-3000.0,0.00019999,2]
[407873627,1772863833024,-3000.0,0.00019999,7]
[407873628,1772863833035,-307.04969745,0.00019999,2]
[407873629,1772863833044,-150.0,0.0002,7]
[407873630,1772863833053,-19809.05431963,0.0002,2]
[407873631,1772863838204,-1155.22856453,0.000199,2]
[407873632,1772863838215,-353.43477109,0.000199,2]
[407873633,1772863838224,-3007.57404548,0.0002,2]
[407873634,1772863838236,-1185.97986445,0.0002,2]
[407873635,1772863838262,-748.26893567,0.0002,2]
[407873636,1772863838321,-3929769.81758928,0.0002,2]
[407873838,1772863840334,-635.10899384,0.0002,2]
[407873913,1772863841018,-13727.07117625,0.0002,2]
[407873915,1772863843264,-322.94797957,0.000199,2]
[407873916,1772863846084,-375.16371793,0.000199,2]
[407873917,1772863846244,-386.1997533,0.000199,2]
[407873922,1772864552871,530.34372787,0.00011333,2]
[407873923,1772864663141,152.54,0.00011413,2]
[407873924,1772864801094,-213.42098412,0.00013333,2]
[407873926,1772865031353,-288.57901588,0.00013333,2]
[407873927,1772865031363,-304.31094,0.00013333,2]
[407873928,1772865031372,-260.0,0.00013333,2]
[407873929,1772865031382,-200.0,0.00014086,2]
[407873930,1772865031391,-300.0,0.00014665,2]
[407873931,1772865031403,-250.0,0.00014666,2]
[407873932,1772865031414,-250.0,0.00014666,2]
[407873933,1772865031423,-706.91,0.00014853,2]
[407873934,1772865031433,-453.47,0.00014853,2]
[407873935,1772865031443,-200.0,0.00015083,2]
[407873936,1772865031453,-2332.61,0.0001526,2]
[407873937,1772865031463,-200.0,0.00015351,2]
[407873938,1772865031474,-1600.0,0.000156,5]
[407873939,1772865031485,-2332.61,0.00015642,2]
[407873940,1772865031494,-3200.0,0.000157,5]
[407873942,1772865031504,-4900.0,0.000158,5]
[407873944,1772865031514,-200.0,0.0001585,2]
[407873946,1772865031524,-1600.0,0.00015853,2]
[407873949,1772865031534,-6500.0,0.000159,5]
[407873951,1772865031545,-1500.0,0.0001592,2]
[407873952,1772865031555,-1273.441823,0.0001596,7]
[407873954,1772865031565,-3848.94115026,0.00016011,2]
[407873956,1772865031574,-4885.91760106,0.00016011,2]
[407873958,1772865031584,-3052.67850375,0.00016011,2]
[407873959,1772865031594,-3672.2060339,0.00016011,2]
[407873960,1772865031603,-2332.61,0.00016023,2]
[407873961,1772865031613,-504.59959812,0.00016073,2]
[407873962,1772865031622,-500.0,0.00016073,2]
[407873963,1772865031632,-500.0,0.00016073,2]
[407873964,1772865031642,-220.36614209,0.0001609,2]
[407873966,1772865031652,-151.0,0.00016097,2]
[407873968,1772865031662,-151.0,0.00016097,2]
[407873970,1772865031671,-500.0,0.00016099,2]
[407873972,1772865031681,-183.29516755,0.00016099,2]
[407873974,1772865031691,-500.0,0.00016099,2]
[407873976,1772865031700,-500.0,0.00016099,2]
[407873977,1772865031709,-500.0,0.00016099,2]
[407873978,1772865031719,-500.0,0.00016099,2]
[407873979,1772865031729,-500.0,0.00016099,2]
[407873980,1772865031738,-500.0,0.00016099,2]
[407873981,1772865031748,-500.0,0.00016099,2]
[407873982,1772865031757,-188.37828695,0.00016099,2]
[407873983,1772865031766,-13260.5045625,0.000161,2]
[407873984,1772865031778,-12975.74170409,0.000161,2]
[407873985,1772865031789,-1254.41808677,0.000161,2]
[407873986,1772865031800,-2463.64215827,0.000161,2]
[407873987,1772865031816,-1014.1262929,0.000161,2]
[407873988,1772865031828,-2454.25531392,0.000161,2]
[407873989,1772865031839,-1000.0,0.000161,2]
[407873990,1772865031851,-952.0,0.000161,2]
[407873991,1772865037591,-430.39589125,0.00016099,2]
[407873992,1772865037604,-487.92231839,0.000161,2]
[407873993,1772865037706,-2464137.38956316,0.000161,2]
[407873994,1772865037720,-502.0,0.00016111,4]
[407873995,1772865037732,-179.64,0.00016123,2]
[407873996,1772865037744,-98703.82837737,0.000162,2]
[407873997,1772865037758,-1939.2,0.00016393,2]
[407873999,1772865037771,-179.64,0.00016393,2]
[407874000,1772865037783,-500.0,0.00016405,2]
[407874001,1772865037795,-2332.61,0.00016405,2]
[407874002,1772865037808,-3848.94115025,0.00016443,2]
[407874003,1772865037820,-4885.91760103,0.00016443,2]
[407874004,1772865037833,-3052.67850368,0.00016567,2]
[407874005,1772865037845,-2135.07406605,0.000166,2]
[407874006,1772865037857,-500.0,0.00016621,2]
[407874007,1772865037871,-179.64,0.00016663,2]
[407874008,1772865037884,-500.0,0.00016679,2]
[407874009,1772865037896,-166.44458264,0.00016773,2]
[407874010,1772865037909,-2332.61,0.00016786,2]
[407874011,1772865037921,-3672.20603387,0.00016789,2]
[407874012,1772865037932,-151.0,0.00016812,2]
[407874013,1772865037946,-151.0,0.00016812,2]
[407874014,1772865037958,-151.0,0.00016812,2]
[407874015,1772865037969,-151.0,0.00016812,2]
[407874016,1772865037981,-163.6216585,0.00016812,2]
[407874017,1772865037993,-500.0,0.00016812,2]
[407874018,1772865038005,-500.0,0.00016821,2]
[407874019,1772865038017,-500.0,0.00016821,2]
[407874020,1772865038028,-500.0,0.00016821,2]
[407874021,1772865038039,-500.0,0.00016821,2]
[407874022,1772865038052,-500.0,0.00016821,2]
[407874023,1772865038064,-500.0,0.00016821,2]
[407874024,1772865038075,-500.0,0.00016821,2]
[407874025,1772865038087,-500.0,0.00016821,2]
[407874026,1772865038099,-500.0,0.00016821,2]
[407874027,1772865038110,-500.0,0.00016821,2]
[407874028,1772865038122,-500.0,0.00016821,2]
[407874029,1772865038134,-3848.94115025,0.00016875,2]
[407874030,1772865038146,-4885.91760103,0.00016875,2]
[407874031,1772865038158,-1588.09,0.00016922,2]
[407874032,1772865038170,-179.66,0.00016933,2]
[407874033,1772865038182,-500.0,0.00016953,2]
[407874034,1772865038194,-3052.67850368,0.00017122,2]
[407874035,1772865038206,-505.41983925,0.00017233,2]
[407874036,1772865038218,-166.44458264,0.00017294,2]
[407874037,1772865038231,-3848.94115025,0.00017307,2]
[407874038,1772865038242,-4885.91760103,0.00017307,2]
[407874039,1772865038254,-200.0,0.00017521,2]
[407874040,1772865038265,-3672.20603387,0.00017567,2]
[407874041,1772865038277,-385.07618819,0.00017578,2]
[407874042,1772865038288,-179.77391192,0.00017626,3]
[407874043,1772865038300,-2000.0,0.00017668,2]
[407874044,1772865038312,-3052.67850368,0.00017678,2]
[407874045,1772865038323,-500.0,0.00017726,2]
[407874046,1772865038335,-3848.94115025,0.00017739,2]
[407874047,1772865038348,-4885.91760103,0.00017739,2]
[407874048,1772865038359,-166.44458264,0.00017815,2]
[407874049,1772865038371,-1600.0,0.00017835,2]
[407874050,1772865038383,-371.41690258,0.000179,2]
[407874051,1772865038395,-371.41690255,0.000179,2]
[407874052,1772865038409,-371.41690255,0.000179,2]
[407874053,1772865038420,-371.41690255,0.000179,2]
[407874054,1772865038432,-371.41690258,0.000179,2]
[407874055,1772865038444,-371.41690255,0.000179,2]
[407874056,1772865038456,-371.41690255,0.000179,2]
[407874057,1772865038467,-371.41690255,0.000179,2]
[407874058,1772865038480,-3848.94115025,0.00018172,2]
[407874059,1772865038492,-4885.91760103,0.00018172,2]
[407874060,1772865038503,-3052.67850368,0.00018233,2]
[407874061,1772865038514,-166.44458264,0.00018337,2]
[407874062,1772865038525,-3672.20603387,0.00018344,2]
[407874063,1772865038537,-3848.94115025,0.00018604,2]
[407874064,1772865038548,-4885.91760103,0.00018604,2]
[407874065,1772865038561,-385.07618817,0.00018739,2]
[407874066,1772865038573,-179.77391192,0.00018763,3]
[407874067,1772865038584,-3052.67850368,0.00018789,2]
[407874068,1772865038595,-166.44458264,0.00018858,2]
[407874069,1772865038607,-1245.79,0.00018875,2]
[407874070,1772865038619,-502.0,0.00018888,6]
[407874071,1772865038630,-249.0,0.00018931,2]
[407874072,1772865038641,-3848.94115025,0.00019036,2]
[407874073,1772865038653,-4885.91760103,0.00019036,2]
[407874074,1772865038665,-200.0,0.00019104,2]
[407874075,1772865038676,-3672.20603387,0.00019122,2]
[407874076,1772865038688,-1591.802279,0.00019152,7]
[407874077,1772865038699,-2788.91239729,0.00019185,2]
[407874078,1772865038711,-548.75345228,0.00019273,2]
[407874079,1772865038722,-150.0,0.00019273,2]
[407874080,1772865038733,-9020.66352128,0.00019285,2]
[407874081,1772865038745,-1469.73446645,0.00019285,2]
[407874082,1772865038757,-500.0,0.00019285,2]
[407874083,1772865038768,-733.32656971,0.00019285,2]
[407874084,1772865038780,-315.19202845,0.00019285,2]
[407874085,1772865038792,-2500.0,0.00019285,2]
[407874086,1772865038803,-2500.0,0.00019285,2]
[407874087,1772865038816,-2500.0,0.00019285,2]
[407874088,1772865038827,-1165.68126867,0.00019285,2]
[407874089,1772865038839,-151.0,0.00019285,2]
[407874090,1772865038851,-1000.0,0.00019285,2]
[407874091,1772865038863,-1000.0,0.00019285,2]
[407874092,1772865038875,-1000.0,0.00019285,2]
[407874093,1772865038887,-1000.0,0.00019285,2]
[407874094,1772865038898,-1000.0,0.00019285,2]
[407874095,1772865038909,-605.76864691,0.00019285,2]
[407874096,1772865038921,-693.3919763,0.00019285,2]
[407874097,1772865038932,-500.0,0.00019285,2]
[407874098,1772865038943,-500.0,0.00019285,2]
[407874099,1772865038955,-500.0,0.00019285,2]
[407874100,1772865038967,-500.0,0.00019285,2]
[407874101,1772865038979,-500.0,0.00019285,2]
[407874102,1772865038992,-500.0,0.00019285,2]
[407874103,1772865039004,-500.0,0.00019285,2]
[407874104,1772865039015,-500.0,0.00019285,2]
[407874105,1772865039027,-500.0,0.00019285,2]
[407874106,1772865039040,-500.0,0.00019285,2]
[407874107,1772865039571,-500.0,0.00019285,2]
[407874109,1772865039610,-249.0,0.00019308,2]
[407874110,1772865039638,-155.05699457,0.0001934,2]
[407874111,1772865039647,-719.04747942,0.0001934,2]
[407874112,1772865039656,-3052.67850368,0.00019344,2]
[407874113,1772865039665,-166.44458264,0.00019379,2]
[407874114,1772865039674,-249.0,0.00019392,2]
[407874115,1772865039683,-745.65223616,0.00019395,2]
[407874116,1772865039692,-773.2413689,0.0001945,2]
[407874117,1772865039702,-3848.94115025,0.00019468,2]
[407874118,1772865039711,-4885.91760103,0.00019468,2]
[407874119,1772865039720,-160.0,0.00019494,2]
[407874120,1772865039729,-172.78723296,0.00019494,2]
[407874121,1772865039738,-172.78723296,0.000195,7]
[407874122,1772865039747,-8200.0,0.000195,7]
[407874123,1772865039756,-1064.33042176,0.00019502,2]
[407874124,1772865039765,-801.85129955,0.00019505,2]
[407874125,1772865039774,-249.0,0.0001951,2]
[407874126,1772865039784,-2788.91239728,0.00019543,2]
[407874127,1772865039793,-831.51979763,0.0001956,2]
[407874128,1772865039802,-1600.0,0.000196,7]
[407874129,1772865039811,-249.0,0.0001961,2]
[407874130,1772865039820,-862.28603014,0.00019615,2]
[407874131,1772865039830,-249.0,0.00019654,2]
[407874132,1772865039839,-894.19061326,0.0001967,2]
[407874133,1772865039848,-1600.0,0.000197,7]
[407874134,1772865039857,-249.0,0.00019706,2]
[407874135,1772865039866,-927.27566595,0.00019725,2]
[407874136,1772865039876,-154.76984687,0.0001973,2]
[407874137,1772865039885,-249.0,0.00019744,2]
[407874138,1772865039894,-249.0,0.0001977,2]
[407874139,1772865039903,-961.58486559,0.0001978,2]
[407874140,1772865039913,-500.0,0.00019783,2]
[407874141,1772865039922,-150.0,0.00019783,2]
[407874142,1772865039931,-249.0,0.00019799,2]
[407874143,1772865039940,-1600.0,0.000198,7]
[407874144,1772865039950,-62597.4420038,0.0001981,2]
[407874145,1772865039959,-1600.0,0.00019817,2]
[407874146,1772865039968,-249.0,0.00019817,2]
[407874147,1772865039978,-250.0,0.00019821,2]
[407874148,1772865039987,-997.16350561,0.00019835,2]
[407874149,1772865039999,-500.0,0.00019838,2]
[407874150,1772865040008,-249.0,0.00019848,2]
[407874151,1772865040017,-150.30296318,0.00019873,2]
[407874152,1772865040026,-431.76329118,0.00019893,2]
[407874153,1772865040035,-32918.3967,0.000199,2]
[407874154,1772865040044,-1000.0,0.000199,2]
[407874155,1772865040053,-166.44458264,0.000199,2]
[407874156,1772865040063,-1600.0,0.000199,7]
[407874157,1772865040072,-3848.94115025,0.000199,2]
[407874158,1772865040082,-2788.91239728,0.000199,2]
[407874159,1772865040091,-3672.20603387,0.000199,2]
[407874160,1772865040101,-3052.67850368,0.000199,2]
[407874161,1772865040110,-4885.91760103,0.000199,2]
[407874162,1772865040119,-179.77391192,0.000199,3]
[407874163,1772865040128,-385.07618817,0.000199,2]
[407874164,1772865040137,-207.37700544,0.0001999,30]
[407874165,1772865040146,-220.36614209,0.0001999,2]
[407874166,1772865040155,-220.36614209,0.0001999,2]
[407874167,1772865040165,-151.0,0.00019994,2]
[407874168,1772865040174,-502410.0372576,0.00019997,2]
[407874169,1772865040183,-20059.1750573,0.00019997,2]
[407874170,1772865040192,-55391.0578964,0.00019997,2]
[407874171,1772865040202,-1230.3032015,0.00019997,2]
[407874172,1772865040211,-151.0,0.00019997,2]
[407874173,1772865040219,-500.0,0.00019999,2]
[407874174,1772865040229,-500.0,0.00019999,2]
[407874175,1772865040238,-500.0,0.00019999,2]
[407874176,1772865040247,-500.0,0.00019999,2]
[407874177,1772865040256,-500.0,0.00019999,2]
[407874178,1772865040266,-500.0,0.00019999,2]
[407874179,1772865040276,-500.0,0.00019999,2]
[407874180,1772865040286,-397.97236465,0.00019999,2]
[407874181,1772865040296,-500.0,0.00019999,2]
[407874182,1772865040306,-500.0,0.00019999,2]
[407874183,1772865040316,-500.0,0.00019999,2]
[407874184,1772865040326,-500.0,0.00019999,2]
[407874185,1772865040337,-500.0,0.00019999,2]
[407874186,1772865040347,-500.0,0.00019999,2]
[407874188,1772865040356,-500.0,0.00019999,2]
[407874189,1772865040367,-500.0,0.00019999,2]
[407874190,1772865040377,-502.65710127,0.00019999,2]
[407874191,1772865040387,-500.0,0.00019999,2]
[407874192,1772865040397,-500.0,0.00019999,2]
[407874193,1772865040411,-500.0,0.00019999,2]
[407874194,1772865040420,-500.0,0.00019999,2]
[407874196,1772865040429,-256.75572098,0.00019999,2]
[407874197,1772865040441,-5847336.66360202,0.0002,2]
[407874198,1772865040635,-749.72188916,0.0002,2]
[407874199,1772865040650,-4437291.38174947,0.0002,2]
[407874200,1772865040661,-26796.87553852,0.0002,2]
[407874201,1772865040679,-9929.82391142,0.0002,2]
[407874202,1772865040700,-88461.46787758,0.0002,2]
[407874228,1772865045336,-3983.65,0.0002,2]
[407874232,1772865558797,192.86567602,0.00011413,2]
[407874233,1772865823417,160.40457499,0.0001,2]
[407874234,1772865993092,-178.77695161,0.00013333,2]
[407874248,1772866231657,-502.0,0.00013333,2]